bitfinex-derivatives/quotes_ETHF0:USTF0_20230701
["timestamp","ask_amount","ask_price","bid_price","bid_amount"]
[1688173803595,0.31066,1931.7,1931.6,3.57366]
[1688173806090,0.31066,1931.7,1931.6,3.71129712]
[1688173809897,0.31066,1931.7,1931.6,4.11934911]
[1688173810090,0.93202558,1931.8,1931.6,4.11934911]
[1688173810294,0.93202558,1931.8,1931.7,3.98875867]
[1688173810689,0.93202558,1931.8,1931.7,4.08783973]
[1688173815500,3.558e-05,1931.8,1931.7,4.08783973]
[1688173816102,0.31061,1932.0,1931.7,7.35083973]
[1688173816400,0.31061,1932.0,1931.9,3.241]
[1688173816603,0.31061,1932.0,1931.9,3.98872867]
[1688173820109,0.93177,1932.3,1931.9,10.45952867]
[1688173820310,0.93177,1932.3,1932.2,3.241]
[1688173820511,0.93177,1932.3,1932.2,3.68546987]
[1688173821811,0.93177,1932.3,1932.2,8.82056987]
[1688173824917,0.31056,1932.4,1932.2,8.82056987]
[1688173825117,0.31056,1932.4,1932.3,3.5662188]
[1688173825414,0.31056,1932.4,1932.3,3.8767688]
[1688173827417,0.93168,1932.5,1932.3,3.8767688]
[1688173827619,0.93168,1932.5,1932.4,3.70742987]
[1688173827817,1.01377237,1932.5,1932.4,3.70742987]
[1688173828113,0.08209237,1932.5,1932.4,3.70742987]
[1688173828318,0.31051,1932.6,1932.4,3.70742987]
[1688173828521,0.31051,1932.6,1932.5,0.6137288]
[1688173828821,0.41838131,1932.6,1932.5,5.6818288]
[1688173830317,0.41838131,1932.6,1932.5,8.9448288]
[1688173834025,3.91289766,1932.6,1932.5,3.263]
[1688173834210,3.91289766,1932.6,1932.5,3.57351]
[1688173836030,3.91289766,1932.6,1932.5,3.263]
[1688173837724,3.91289766,1932.6,1932.5,3.57351]
[1688173838329,3.91289766,1932.6,1932.5,3.263]
[1688173838628,3.91289766,1932.6,1932.5,3.57351]
[1688173839326,3.91289766,1932.6,1932.5,3.263]
[1688173839929,3.62618131,1932.6,1932.5,3.263]
[1688173840226,3.91289766,1932.6,1932.5,3.57351]
[1688173840826,3.62618131,1932.6,1932.5,3.57351]
[1688173841225,3.91394946,1932.6,1932.5,3.57351]
[1688173841620,4.20066581,1932.6,1932.5,3.57351]
[1688173841820,4.20066581,1932.6,1932.5,3.263]
[1688173843426,7.46366581,1932.6,1932.4,0.40611591]
[1688173843723,7.46366581,1932.6,1932.2,0.00776237]
[1688173843724,0.31053,1932.4,1932.2,0.00776237]
[1688173843929,7.06805635,1932.3,1932.2,0.00776237]
[1688173844128,7.85137821,1932.3,1932.2,0.00776237]
[1688173853037,7.85137821,1932.3,1932.2,0.31832237]
[1688173853438,3.73417774,1932.3,1932.2,3.69322224]
[1688173853640,3.42363774,1932.3,1932.2,3.69322224]
[1688173854137,0.52638774,1932.3,1932.2,3.69322224]
[1688173854330,0.52638774,1932.3,1932.2,8.65382224]
[1688173861350,0.81310409,1932.3,1932.2,8.20936237]
[1688173861643,0.81310409,1932.3,1932.2,8.65382224]
[1688173861849,0.52638774,1932.3,1932.2,8.65382224]
[1688173863945,4.02090409,1932.3,1932.2,8.51992237]
[1688173864736,3.94764241,1932.3,1932.2,8.51992237]
[1688173865146,3.66092606,1932.3,1932.2,8.65382224]
[1688173865449,3.69944665,1932.3,1932.2,8.65382224]
[1688173866756,3.986163,1932.3,1932.2,8.65382224]
[1688173866951,3.986163,1932.3,1932.2,8.51992237]
[1688173868050,3.69944665,1932.3,1932.2,8.65382224]
[1688173869851,3.986163,1932.3,1932.2,8.65382224]
[1688173871555,3.986163,1932.3,1932.2,8.51992237]
[1688173871754,3.986163,1932.3,1932.2,8.65382224]
[1688173871961,3.69944665,1932.3,1932.2,8.65382224]
[1688173872852,0.18109665,1932.3,1932.2,8.65382224]
[1688173873057,0.9316,1932.6,1932.2,8.65382224]
[1688173873259,0.9316,1932.6,1932.5,3.263]
[1688173873457,0.9316,1932.6,1932.5,3.70740987]
[1688173873757,0.9316,1932.6,1932.5,4.01062867]
[1688173876358,0.77631,1932.8,1932.5,7.21842867]
[1688173876561,0.77621,1933.0,1932.7,6.4708]
[1688173876861,0.77621,1933.0,1932.9,3.55145]
[1688173877660,3.51827,1933.1,1932.9,3.55145]
[1688173877849,0.93126,1933.2,1933.0,3.70011867]
[1688173878055,0.93126,1933.2,1933.1,3.57342]
[1688173878360,0.77603,1933.5,1933.3,0.31038]
[1688173878361,3.98383,1933.5,1933.3,0.31038]
[1688173878557,3.2078,1933.5,1933.4,4.01048867]
[1688173878957,3.51815,1933.5,1933.4,4.01048867]
[1688173880250,3.2078,1933.5,1933.4,4.01048867]
[1688173880457,0.31035,1933.5,1933.4,4.01048867]
[1688173880764,0.76856203,1933.5,1933.4,4.01048867]
[1688173882755,0.76856203,1933.5,1933.4,4.41509395]
[1688173884169,0.76856203,1933.5,1933.4,9.34089395]
[1688173884357,0.45821203,1933.5,1933.4,9.34089395]
[1688173884965,0.76856203,1933.5,1933.4,9.34089395]
[1688173885869,0.45821203,1933.5,1933.4,9.34089395]
[1688173886267,3.98368,1933.7,1933.4,9.34089395]
[1688173886467,3.98368,1933.7,1933.6,3.57334]
[1688173886670,3.2078,1933.7,1933.6,4.01045867]
[1688173887270,3.51809,1933.9,1933.8,0.3103]
[1688173887468,3.51809,1933.9,1933.8,4.01041867]
[1688173888070,3.51809,1933.9,1933.8,8.74531867]
[1688173888479,3.80480635,1933.9,1933.8,8.74531867]
[1688173888673,3.51809,1933.9,1933.8,8.74531867]
[1688173891881,3.80480635,1933.9,1933.8,8.74531867]
[1688173892090,3.51809,1933.9,1933.8,8.74531867]
[1688173892887,3.80480635,1933.9,1933.8,8.44209987]
[1688173893282,3.51809,1933.9,1933.8,8.44209987]
[1688173894590,3.80480635,1933.9,1933.8,7.9979]
[1688173894887,3.80480635,1933.9,1933.8,3.263]
[1688173895282,0.4123,1933.8,1933.5,3.263]
[1688173895485,3.51814,1933.6,1933.5,3.263]
[1688173896080,3.51814,1933.6,1933.5,3.57335]
[1688173896279,3.51814,1933.6,1933.5,3.70724987]
[1688173897490,3.51814,1933.6,1933.5,3.57335]
[1688173898383,4.03897936,1933.6,1933.5,3.263]
[1688173899192,4.03897936,1933.6,1933.5,3.57335]
[1688173899894,4.03897936,1933.6,1933.5,3.70724987]
[1688173900090,4.03897936,1933.6,1933.5,0.44424987]
[1688173900390,4.03897936,1933.6,1933.5,3.70724987]
[1688173900982,0.52083936,1933.6,1933.5,3.70724987]
[1688173901183,3.51811,1933.8,1933.5,3.70724987]
[1688173901494,3.9836,1933.8,1933.7,3.57332]
[1688173902290,3.9836,1933.8,1933.7,8.48181987]
[1688173905887,3.9836,1933.8,1933.7,8.34792]
[1688173906094,4.27031635,1933.8,1933.7,8.0376]
[1688173906285,4.27031635,1933.8,1933.7,8.17149987]
[1688173906485,4.27031635,1933.8,1933.7,8.48181987]
[1688173906697,3.9836,1933.8,1933.7,8.48181987]
[1688173909288,4.27031635,1933.8,1933.7,8.48181987]
[1688173909484,3.9836,1933.8,1933.7,8.48181987]
[1688173909986,3.2078,1933.8,1933.7,11.74381987]
[1688173910186,3.5181,1933.8,1933.7,11.74381987]
[1688173911598,0.3103,1933.9,1933.7,11.74381987]
[1688173911786,0.3103,1933.9,1933.8,3.8765188]
[1688173912188,0.3103,1933.9,1933.8,3.5733]
[1688173912499,0.59701635,1933.9,1933.8,3.263]
[1688173913001,0.59701635,1933.9,1933.8,3.39689987]
[1688173913292,0.59701635,1933.9,1933.8,3.70719987]
[1688173913496,1.11874665,1933.9,1933.8,3.70719987]
[1688173914099,4.38174665,1933.9,1933.7,4.7746]
[1688173914300,3.2078,1933.8,1933.7,4.7746]
[1688173914488,4.08558412,1933.8,1933.7,4.7746]
[1688173914695,4.60735985,1933.8,1933.7,4.7746]
[1688173915497,4.60735985,1933.8,1933.7,5.21881987]
[1688173916594,4.60735985,1933.8,1933.7,5.08492]
[1688173917000,4.60735985,1933.8,1933.7,5.21881987]
[1688173917393,4.60735985,1933.8,1933.7,8.45981987]
[1688173918799,4.03987573,1933.8,1933.7,8.45981987]
[1688173923806,4.32659208,1933.8,1933.7,8.45981987]
[1688173924605,4.03987573,1933.8,1933.7,8.45981987]
[1688173924812,4.32659208,1933.8,1933.7,8.45981987]
[1688173926900,0.102,1933.7,1933.2,0.93892835]
[1688173927099,3.263,1933.3,1933.2,0.00775835]
[1688173927404,0.72556345,1933.3,1933.2,4.12022889]
[1688173927799,1.0122798,1933.3,1933.2,3.71505822]
[1688173929003,0.72556345,1933.3,1933.2,3.71505822]
[1688173929399,0.31038,1933.3,1933.2,3.71505822]
[1688173930699,0.59709635,1933.3,1933.2,3.40465822]
[1688173931100,0.59709635,1933.3,1933.2,3.27075835]
[1688173931600,0.31038,1933.3,1933.2,3.71505822]
[1688173932409,0.72574542,1933.3,1933.2,3.71505822]
[1688173932705,1.01246177,1933.3,1933.2,3.71505822]
[1688173933104,0.72574542,1933.3,1933.2,3.71505822]
[1688173934408,1.01246177,1933.3,1933.2,3.71505822]
[1688173934611,0.72574542,1933.3,1933.2,3.71505822]
[1688173935110,0.72574542,1933.3,1933.2,6.97705822]
[1688173935604,0.41536542,1933.3,1933.2,6.97705822]
[1688173936006,0.77597,1933.4,1933.2,6.97705822]
[1688173936309,0.77597,1933.4,1933.3,3.8765988]
[1688173937410,0.31037,1933.5,1933.3,3.8765988]
[1688173937611,3.2078,1933.6,1933.4,3.37489987]
[1688173937910,3.2078,1933.6,1933.5,3.8765688]
[1688173938506,3.66625632,1933.6,1933.5,3.8765688]
[1688173939017,3.97659632,1933.6,1933.5,3.8765688]
[1688173940514,4.26331267,1933.6,1933.5,3.263]
[1688173941316,4.26331267,1933.6,1933.5,3.57335]
[1688173943116,4.26331267,1933.6,1933.5,3.263]
[1688173944114,4.26331267,1933.6,1933.5,3.70724987]
[1688173944418,3.97659632,1933.6,1933.5,3.70724987]
[1688173945815,4.26331267,1933.6,1933.5,3.57335]
[1688173946017,1.05551267,1933.6,1933.5,3.241]
[1688173946323,4.26331267,1933.6,1933.5,3.64578713]
[1688173946618,3.97659632,1933.6,1933.5,4.090037]
[1688173948216,4.26331267,1933.6,1933.5,3.95613713]
[1688173949419,3.97659632,1933.6,1933.5,4.090037]
[1688173950228,3.66625632,1933.6,1933.5,4.112037]
[1688173950518,0.45845632,1933.6,1933.5,4.112037]
[1688173950716,0.31032,1933.7,1933.5,4.112037]
[1688173950917,0.31032,1933.7,1933.6,3.5662188]
[1688173951121,0.31032,1933.7,1933.6,3.8765588]
[1688173951820,4.13879,1933.9,1933.6,3.8765588]
[1688173952021,4.13879,1933.9,1933.8,3.263]
[1688173952319,4.13879,1933.9,1933.8,3.8765188]
[1688173956624,4.42550635,1933.9,1933.8,3.8765188]
[1688173957322,4.13879,1933.9,1933.8,3.8765188]
[1688173958321,3.2078,1933.9,1933.8,3.8765188]
[1688173958627,0.42147631,1933.9,1933.8,3.8765188]
[1688173959019,0.46027,1934.0,1933.8,3.8765188]
[1688173959219,0.46027,1934.0,1933.9,3.39689987]
[1688173959419,0.46027,1934.0,1933.9,3.70718987]
[1688173967929,0.74698635,1934.0,1933.9,3.70718987]
[1688173968233,0.46027,1934.0,1933.9,3.70718987]
[1688173969833,0.74698635,1934.0,1933.9,3.57329]
[1688173970434,0.74698635,1934.0,1933.9,3.70718987]
[1688173971431,0.46027,1934.0,1933.9,3.70718987]
[1688173973447,0.88315022,1934.0,1933.9,3.70718987]
[1688173976845,1.16986657,1934.0,1933.9,3.70718987]
[1688173977440,0.88315022,1934.0,1933.9,3.70718987]
[1688173980146,1.16986657,1934.0,1933.9,3.57329]
[1688173980347,1.16986657,1934.0,1933.9,3.263]
[1688173981349,4.43286657,1934.0,1933.7,5.1964]
[1688173981549,3.2078,1933.8,1933.7,5.1964]
[1688173981751,4.37231047,1933.8,1933.7,5.1964]
[1688173981937,4.79618419,1933.8,1933.7,5.1964]
[1688173984552,4.79618419,1933.8,1933.7,5.60512496]
[1688173984955,8.05918419,1933.8,1933.7,0.40872496]
[1688173985439,0.102,1933.7,1933.4,3.263]
[1688173985643,0.31038,1933.4,1933.3,5.0775]
[1688173986150,1.55393977,1933.4,1933.3,5.0775]
[1688173987246,1.55393977,1933.4,1933.3,5.48998867]
[1688173991651,4.81693977,1933.4,1933.3,0.41248867]
[1688173991858,4.62566288,1933.4,1933.2,0.00775835]
[1688173992151,3.51819,1933.3,1933.2,0.41638945]
[1688173992453,6.97487145,1933.3,1933.2,0.00775835]
[1688173993341,3.71187145,1933.3,1933.2,3.69306822]
[1688173993746,0.19368145,1933.3,1933.2,6.95606822]
[1688173993955,0.31038,1933.4,1933.2,6.95606822]
[1688173994260,0.31038,1933.4,1933.3,8.1938]
[1688173994462,3.51818,1933.4,1933.3,8.50419]
[1688173994659,3.80489635,1933.4,1933.3,8.50419]
[1688173994958,4.13643898,1933.4,1933.3,8.50419]
[1688173995353,3.84972263,1933.4,1933.3,8.50419]
[1688173996853,3.53934263,1933.4,1933.3,8.50419]
[1688173998056,3.82605898,1933.4,1933.3,8.50419]
[1688173998668,3.53934263,1933.4,1933.3,8.50419]
[1688174000276,3.82605898,1933.4,1933.3,8.50419]
[1688174001269,3.53934263,1933.4,1933.3,8.50419]
[1688174004074,0.33154263,1933.4,1933.3,8.50419]
[1688174004382,3.98371,1933.9,1933.4,0.43711867]
[1688174004673,3.98371,1933.9,1933.8,3.57332]
[1688174004876,4.27042635,1933.9,1933.8,3.57332]
[1688174005270,4.27042635,1933.9,1933.8,3.70721987]
[1688174005476,4.27042635,1933.9,1933.8,8.45761987]
[1688174005676,4.27042635,1933.9,1933.8,8.32372]
[1688174006074,7.53342635,1933.9,1933.8,5.06072]
[1688174006276,7.53342635,1933.9,1933.8,4.7504]
[1688174006779,7.53342635,1933.9,1933.8,5.06073]
[1688174007281,7.53342635,1933.9,1933.8,4.7504]
[1688174007580,7.53342635,1933.9,1933.5,3.57337]
[1688174007882,3.51816,1933.6,1933.5,8.73137]
[1688174008070,3.80487635,1933.6,1933.5,8.73137]
[1688174010482,4.37236047,1933.6,1933.5,8.73137]
[1688174010678,3.51816,1933.6,1933.5,8.86526987]
[1688174011086,3.51816,1933.6,1933.5,9.28433343]
[1688174011482,3.80487635,1933.6,1933.5,9.28433343]
[1688174011788,3.99159865,1933.6,1933.5,9.28433343]
[1688174012385,3.7048823,1933.6,1933.5,9.28433343]
[1688174013392,3.99159865,1933.6,1933.5,9.15043356]
[1688174014277,3.99159865,1933.6,1933.5,8.84006356]
[1688174015184,3.99159865,1933.6,1933.5,9.15043356]
[1688174019689,3.99159865,1933.6,1933.5,9.28433343]
[1688174019992,3.7048823,1933.6,1933.5,9.28433343]
[1688174021590,3.99159865,1933.6,1933.5,9.28433343]
[1688174021888,3.99159865,1933.6,1933.5,9.15043356]
[1688174023795,3.99159865,1933.6,1933.5,9.28433343]
[1688174024187,3.7048823,1933.6,1933.5,9.28433343]
[1688174025098,0.1867223,1933.6,1933.5,9.28433343]
[1688174025483,3.2078,1933.8,1933.5,9.28433343]
[1688174025697,3.3578,1934.0,1933.7,3.263]
[1688174025994,4.13357,1934.0,1933.9,3.55131]
[1688174027597,3.3578,1934.0,1933.9,3.55131]
[1688174027794,3.66809,1934.0,1933.9,3.55131]
[1688174029098,3.3578,1934.0,1933.9,3.55131]
[1688174029397,3.66809,1934.0,1933.9,3.55131]
[1688174030698,3.95480635,1934.0,1933.9,3.55131]
[1688174031094,3.95480635,1934.0,1933.9,2.58432942]
[1688174032099,3.95480635,1934.0,1933.9,2.71822929]
[1688174032695,3.95480635,1934.0,1933.9,2.58432942]
[1688174033392,3.95480635,1934.0,1933.9,2.71822929]
[1688174033591,4.27579449,1934.0,1933.9,2.71822929]
[1688174034003,3.98907814,1934.0,1933.9,2.71822929]
[1688174034694,3.67878814,1934.0,1933.9,2.71822929]
[1688174034898,3.98905814,1934.0,1933.9,2.71822929]
[1688174035401,3.98905814,1934.0,1933.9,3.134772]
[1688174035798,3.98905814,1934.0,1933.9,3.237772]
[1688174036697,3.98905814,1934.0,1933.9,3.134772]
[1688174038402,3.98905814,1934.0,1933.9,3.237772]
[1688174040794,3.98905814,1934.0,1933.9,3.134772]
[1688174041503,4.27577449,1934.0,1933.9,3.10387213]
[1688174041699,4.27577449,1934.0,1933.9,3.00087213]
[1688174042307,4.27577449,1934.0,1933.9,3.134772]
[1688174043106,4.27577449,1934.0,1933.9,3.00087213]
[1688174043402,7.53877449,1934.0,1933.9,0.41654271]
[1688174043597,7.41949886,1934.0,1933.6,8.2202]
[1688174043803,6.78113,1933.7,1933.4,13.809]
[1688174044005,6.78113,1933.7,1933.3,3.241]
[1688174044006,3.2078,1933.5,1933.3,8.1982]
[1688174044203,0.31038,1933.4,1933.3,8.1982]
[1688174044403,1.16458047,1933.4,1933.3,8.1982]
[1688174044701,1.25156098,1933.4,1933.3,8.50859]
[1688174045299,1.25156098,1933.4,1933.3,8.1982]
[1688174046305,1.25156098,1933.4,1933.3,8.92243268]
[1688174046702,1.25156098,1933.4,1933.3,8.61203268]
[1688174047906,4.51456098,1933.4,1933.3,5.37103268]
[1688174048705,4.51456098,1933.4,1933.3,0.41383268]
[1688174049207,4.51456098,1933.4,1933.2,0.00775835]
[1688174049414,3.2078,1933.3,1933.2,0.00775835]
[1688174049604,3.5182,1933.3,1933.2,0.00775835]
[1688174049807,3.59838911,1933.3,1933.2,0.00775835]
[1688174050307,3.59838911,1933.3,1933.2,0.31816835]
[1688174050508,3.59838911,1933.3,1933.2,0.73941159]
[1688174050709,3.59838911,1933.3,1933.2,0.31816835]
[1688174051808,3.59838911,1933.3,1933.2,0.00775835]
[1688174053513,3.59838911,1933.3,1933.2,0.31816835]
[1688174056813,3.59838911,1933.3,1933.2,0.00775835]
[1688174059614,3.59838911,1933.3,1933.2,0.31816835]
[1688174061720,3.59838911,1933.3,1933.2,0.00775835]
[1688174063019,3.59838911,1933.3,1933.2,0.31816835]
[1688174070435,3.59838911,1933.3,1933.2,0.00775835]
[1688174072139,6.86138911,1933.3,1933.2,0.00775835]
[1688174074343,6.86138911,1933.3,1933.2,0.45206822]
[1688174074538,0.39058911,1933.3,1933.2,3.71506822]
[1688174076549,3.88510546,1933.3,1933.2,0.31816835]
[1688174082346,3.59838911,1933.3,1933.2,0.45206822]
[1688174082646,3.88510546,1933.3,1933.2,0.45206822]
[1688174082836,3.88510546,1933.3,1933.2,0.31816835]
[1688174083548,3.88510546,1933.3,1933.2,0.45206822]
[1688174084544,3.28798911,1933.3,1933.2,3.71506822]
[1688174084745,3.59838911,1933.3,1933.2,3.71506822]
[1688174084945,3.88510546,1933.3,1933.2,3.71506822]
[1688174085153,3.59838911,1933.3,1933.2,3.71506822]
[1688174088848,3.88510546,1933.3,1933.2,3.71506822]
[1688174089242,3.59838911,1933.3,1933.2,3.71506822]
[1688174089442,3.28798911,1933.3,1933.2,3.71506822]
[1688174090053,2.21423895,1933.3,1933.2,3.71506822]
[1688174090349,2.12518911,1933.3,1933.2,3.71506822]
[1688174090852,2.79133623,1933.3,1933.2,0.45206822]
[1688174092345,6.05433623,1933.3,1933.2,0.00775835]
[1688174098754,2.79133623,1933.3,1933.2,0.00775835]
[1688174099957,6.15633623,1933.3,1933.2,0.00775835]
[1688174100459,0.56748412,1933.2,1933.1,0.41479667]
[1688174100662,4.14089412,1933.2,1932.7,17.84814]
[1688174100864,0.31046,1932.9,1932.8,4.9664]
[1688174101158,3.80497635,1932.9,1932.8,4.9664]
[1688174102155,7.06797635,1932.9,1932.8,5.27688]
[1688174102746,7.06797635,1932.9,1932.8,4.9664]
[1688174103554,7.06797635,1932.9,1932.8,5.08320689]
[1688174104659,7.06797635,1932.9,1932.8,0.11680689]
[1688174105050,7.16997635,1932.9,1932.8,0.11680689]
[1688174105560,7.16997635,1932.9,1932.8,1e-08]
[1688174105757,7.16997635,1932.9,1932.7,0.42430964]
[1688174105758,12.16997635,1932.9,1932.7,0.42430964]
[1688174105953,0.31051,1932.6,1932.1,0.31059]
[1688174106157,6.78137,1932.2,1932.1,0.31059]
[1688174106363,7.06808635,1932.2,1932.0,6.57203406]
[1688174106662,7.63557047,1932.2,1932.0,6.57203406]
[1688174106859,3.263,1932.1,1932.0,6.57203406]
[1688174107164,3.263,1932.1,1931.9,0.78426357]
[1688174107165,3.57359,1932.1,1931.9,0.00776357]
[1688174107364,4.06200047,1932.0,1931.9,0.00776357]
[1688174107558,4.37261047,1932.0,1931.9,0.00776357]
[1688174108761,4.37261047,1932.0,1931.9,0.43116775]
[1688174108960,7.63561047,1932.0,1931.9,0.00776357]
[1688174110361,7.73761047,1932.0,1931.9,0.00776357]
[1688174110557,7.73761047,1932.0,1931.8,0.41845113]
[1688174110758,3.263,1931.9,1931.6,5.1921]
[1688174111062,6.4708,1931.7,1931.6,5.1921]
[1688174111266,6.4708,1931.7,1931.4,3.263]
[1688174111267,6.78145,1931.7,1931.4,3.263]
[1688174111561,3.51848,1931.5,1931.4,3.58146578]
[1688174111969,3.51848,1931.5,1931.4,5.68069877]
[1688174113054,3.51848,1931.5,1931.4,5.5467989]
[1688174113256,3.51848,1931.5,1931.4,4.00071585]
[1688174113456,3.51848,1931.5,1931.4,4.29877552]
[1688174113663,3.51848,1931.5,1931.4,4.27677552]
[1688174114055,3.51848,1931.5,1931.4,4.41067539]
[1688174114856,3.51848,1931.5,1931.4,4.27677552]
[1688174115861,3.51848,1931.5,1931.4,4.41067539]
[1688174116464,3.51848,1931.5,1931.4,4.27677552]
[1688174117664,3.51848,1931.5,1931.4,4.43267539]
[1688174117871,3.2078,1931.5,1931.4,4.43267539]
[1688174118069,3.80519635,1931.5,1931.4,4.29877552]
[1688174118367,3.80519635,1931.5,1931.4,3.98807552]
[1688174118561,7.06819635,1931.5,1931.4,0.72507552]
[1688174119170,7.06819635,1931.5,1931.4,0.80049554]
[1688174119764,7.06819635,1931.5,1931.4,1.11118554]
[1688174120869,7.06819635,1931.5,1931.4,0.80049554]
[1688174122571,0.77671,1931.6,1931.4,4.50807541]
[1688174122873,0.3692558,1931.6,1931.5,3.263]
[1688174123167,0.3692558,1931.6,1931.5,4.16313702]
[1688174124266,0.31066,1931.9,1931.6,0.13389987]
[1688174124474,0.31066,1931.9,1931.8,3.263]
[1688174124475,0.3106,1931.9,1931.8,3.263]
[1688174124667,0.3106,1931.9,1931.8,3.5736]
[1688174124866,0.93184,1932.0,1931.9,0.3032188]
[1688174125066,0.93184,1932.0,1931.9,3.8548188]
[1688174125267,0.93184,1932.0,1931.9,4.08347935]
[1688174126274,1.21855635,1932.0,1931.9,4.08347935]
[1688174127275,0.93184,1932.0,1931.9,4.08347935]
[1688174127663,4.42635635,1932.0,1931.9,3.79487935]
[1688174127869,4.42635635,1932.0,1931.9,3.49166055]
[1688174128978,7.79135635,1932.0,1931.9,0.22866055]
[1688174129171,0.56748412,1931.9,1931.4,5.50821585]
[1688174129366,6.78147,1931.5,1931.4,5.50821585]
[1688174129576,7.06818635,1931.5,1931.4,5.50821585]
[1688174129772,7.63567047,1931.5,1931.4,5.81890585]
[1688174130780,7.63567047,1931.5,1931.4,5.50821585]
[1688174130977,7.63567047,1931.5,1931.4,5.81890585]
[1688174131373,7.63567047,1931.5,1931.4,5.95280572]
[1688174131577,7.34895412,1931.5,1931.4,5.95280572]
[1688174131776,7.63567047,1931.5,1931.4,5.81890585]
[1688174132285,6.78147,1931.5,1931.4,5.95280572]
[1688174133379,3.51847,1931.5,1931.4,9.19380572]
[1688174133677,0.31067,1931.5,1931.4,9.19380572]
[1688174134668,0.77669,1931.6,1931.4,9.19380572]
[1688174134890,0.77669,1931.6,1931.5,3.8768888]
[1688174136283,0.31066,1931.7,1931.5,3.8768888]
[1688174136583,0.31066,1931.7,1931.6,0.13389987]
[1688174136777,0.59737635,1931.7,1931.6,0.65533147]
[1688174137285,0.31066,1931.7,1931.6,0.65533147]
[1688174138784,3.51846,1931.7,1931.6,0.65533147]
[1688174138971,3.80517635,1931.7,1931.6,0.65533147]
[1688174139179,0.31066,1931.7,1931.6,3.91833147]
[1688174139990,0.59737635,1931.7,1931.6,3.7624316]
[1688174140287,3.80517635,1931.7,1931.6,3.7624316]
[1688174140687,3.80517635,1931.7,1931.6,3.89633147]
[1688174140887,0.31066,1931.7,1931.6,3.89633147]
[1688174142492,3.86037635,1931.7,1931.6,0.65533147]
[1688174142791,3.86037635,1931.7,1931.6,0.5214316]
[1688174143181,3.86037635,1931.7,1931.6,0.65533147]
[1688174143689,3.86037635,1931.7,1931.6,0.5214316]
[1688174143883,7.06817635,1931.7,1931.6,0.5214316]
[1688174144193,7.06817635,1931.7,1931.6,0.2107716]
[1688174144783,7.06817635,1931.7,1931.4,6.44025585]
[1688174144979,3.2078,1931.5,1931.4,6.44025585]
[1688174145290,3.51847,1931.5,1931.4,6.44025585]
[1688174145591,3.51847,1931.5,1931.4,6.57415572]
[1688174146086,3.51847,1931.5,1931.4,6.44025585]
[1688174146294,3.80518635,1931.5,1931.4,6.44025585]
[1688174146588,3.80518635,1931.5,1931.4,6.57415572]
[1688174146783,3.51847,1931.5,1931.4,6.57415572]
[1688174146982,0.31067,1931.5,1931.4,6.57415572]
[1688174147290,0.31067,1931.5,1931.4,9.83715572]
[1688174148089,0.59738635,1931.5,1931.4,9.70325585]
[1688174148285,0.59738635,1931.5,1931.4,5.50821585]
[1688174148493,3.80518635,1931.5,1931.4,5.50821585]
[1688174149390,7.06818635,1931.5,1931.4,0.42701585]
[1688174149591,7.17018635,1931.5,1931.4,0.42701585]
[1688174149791,10.42118635,1931.5,1931.4,0.42701585]
[1688174149987,10.42118635,1931.5,1931.4,0.00776578]
[1688174150593,10.98867047,1931.5,1931.0,19.37135]
[1688174150792,6.4708,1931.2,1931.0,5.56235]
[1688174150987,0.87822412,1931.1,1931.0,5.56235]
[1688174151292,0.87822412,1931.1,1931.0,5.69624987]
[1688174151994,0.87822412,1931.1,1931.0,6.10278041]
[1688174152192,0.31074,1931.1,1931.0,9.36578041]
[1688174153689,0.31074,1931.1,1931.0,9.69434415]
[1688174157889,0.77686,1931.2,1931.0,9.69434415]
[1688174158089,0.77686,1931.2,1931.1,3.8549588]
[1688174158289,1.06357635,1931.2,1931.1,0.32840101]
[1688174158488,12.53437635,1931.2,1931.0,0.40653054]
[1688174158691,0.31076,1931.0,1930.4,3.241]
[1688174158895,9.27137635,1931.2,1930.4,9.18381]
[1688174158896,0.31082,1930.6,1930.4,9.18381]
[1688174159094,0.31082,1930.6,1930.5,4.01093867]
[1688174160793,0.59753635,1930.6,1930.5,4.01093867]
[1688174161492,0.31082,1930.6,1930.5,4.01093867]
[1688174164703,0.59753635,1930.6,1930.5,4.01093867]
[1688174165100,0.59753635,1930.6,1930.5,3.70011867]
[1688174165295,0.59753635,1930.6,1930.4,7.81653211]
[1688174165296,3.80533635,1930.6,1930.4,10.30242211]
[1688174165497,3.80533635,1930.6,1930.4,8.75410158]
[1688174165693,0.56748412,1930.5,1930.4,8.75410158]
[1688174166001,0.87832412,1930.5,1930.4,8.75410158]
[1688174166199,0.87832412,1930.5,1930.4,9.0110085]
[1688174166404,4.14132412,1930.5,1930.4,5.7480085]
[1688174166704,4.14132412,1930.5,1930.4,0.6863085]
[1688174166899,4.14132412,1930.5,1930.4,0.75110777]
[1688174168494,4.24332412,1930.5,1930.4,0.75110777]
[1688174168900,4.24332412,1930.5,1930.4,0.329476]
[1688174170205,4.24332412,1930.5,1929.8,8.5185]
[1688174170206,0.102,1930.4,1929.8,8.5185]
[1688174170404,3.263,1929.9,1929.8,6.77979776]
[1688174170605,4.42813047,1929.9,1929.8,0.42132531]
[1688174171115,4.42813047,1929.9,1929.7,0.00777262]
[1688174171302,6.4708,1929.8,1929.7,0.00777262]
[1688174171506,6.78175,1929.8,1929.7,0.00777262]
[1688174174103,6.78175,1929.8,1929.7,0.45264249]
[1688174174308,0.31095,1929.8,1929.7,0.45264249]
[1688174176600,0.31095,1929.8,1929.7,3.71564249]
[1688174176801,0.77733,1930.0,1929.7,10.18644249]
[1688174177008,0.77733,1930.0,1929.9,3.57393]
[1688174177206,0.77733,1930.0,1929.9,3.70782987]
[1688174177608,0.77733,1930.0,1929.9,4.01257977]
[1688174178109,0.93271,1930.2,1929.9,4.01257977]
[1688174178301,0.93271,1930.2,1930.1,3.57389]
[1688174178502,0.93271,1930.2,1930.1,3.70778987]
[1688174178798,0.93271,1930.2,1930.1,3.92513384]
[1688174180810,0.93271,1930.2,1930.1,5.73513384]
[1688174182407,0.93271,1930.2,1930.1,0.35124384]
[1688174182718,0.93271,1930.2,1930.1,0.21734397]
[1688174182719,6.27242635,1930.2,1930.1,0.21734397]
[1688174183715,9.48022635,1930.2,1930.1,0.66213384]
[1688174184017,6.27242635,1930.2,1930.1,0.66213384]
[1688174184318,9.48022635,1930.2,1930.1,0.21734397]
[1688174184514,9.49422635,1930.2,1930.1,0.62758641]
[1688174184719,9.49422635,1930.2,1929.9,4.9279]
[1688174184922,4.42722635,1930.2,1930.1,0.21679617]
[1688174185124,9.49422635,1930.2,1930.0,0.21678788]
[1688174185418,0.31091,1930.0,1929.7,5.39172262]